bitfinex/quotes_ETHUSD_20250823
["timestamp","ask_amount","ask_price","bid_price","bid_amount"]
[1755981545659,3.73943532,4752.6,4752.5,2.1041557]
[1755981545860,3.73943532,4752.6,4752.5,2.9623557]
[1755981545861,3.544,4752.6,4752.5,2.9623557]
[1755981546035,3.73943521,4752.6,4752.5,0.416]
[1755981546237,0.19543521,4752.6,4752.5,2.8567557]
[1755981546552,3.544,4752.6,4752.5,3.27438306]
[1755981546726,3.73947964,4752.6,4752.5,3.27438306]
[1755981546921,0.19547964,4752.6,4752.5,3.27438306]
[1755981547126,0.19547964,4752.7,4752.6,2.10411143]
[1755981547363,0.19547964,4752.7,4752.6,2.85671143]
[1755981547548,0.19547964,4752.7,4752.6,2.96231143]
[1755981549175,0.19547964,4752.7,4752.6,2.52011143]
[1755981549374,0.64632413,4752.7,4752.6,0.416]
[1755981550070,0.94962413,4752.7,4752.1,0.001]
[1755981550281,0.94962413,4752.7,4752.3,2.10424426]
[1755981550282,3.73947964,4752.6,4752.3,2.10424426]
[1755981550589,0.19547964,4752.5,4752.3,2.10424426]
[1755981550744,3.544,4752.4,4752.3,2.10424426]
[1755981550945,3.544,4752.4,4752.3,2.41464426]
[1755981551145,3.544,4752.4,4752.3,2.85684426]
[1755981553050,3.544,4752.4,4752.3,0.3104]
[1755981553463,3.544,4752.4,4752.2,0.1056]
[1755981554688,0.8468,4752.3,4752.1,0.001]
[1755981555056,0.63355732,4752.2,4752.1,0.001]
[1755981555382,0.7412,4752.2,4752.1,0.001]
[1755981558863,0.7705,4752.2,4752.1,0.001]
[1755981560583,0.1056,4752.2,4752.1,0.001]
[1755981560782,0.4149,4752.2,4752.1,0.001]
[1755981562689,0.61089137,4752.2,4752.1,0.001]
[1755981562889,1.06241806,4752.2,4752.1,0.001]
[1755981563513,6.1667066,4752.2,4752.1,0.001]
[1755981563894,4.06241806,4752.2,4752.1,0.001]
[1755981565630,4.14141806,4752.2,4752.1,0.001]
[1755981565819,6.04971523,4752.2,4752.1,0.001]
[1755981565989,9.7847262,4752.2,4752.1,0.001]
[1755981566189,9.7057262,4752.2,4752.1,0.001]
[1755981567121,10.3657262,4752.2,4752.1,0.001]
[1755981567418,8.26143766,4752.2,4752.1,0.001]
[1755981567718,10.3657262,4752.2,4752.1,0.001]
[1755981570532,8.26143766,4752.2,4752.1,0.001]
[1755981570749,10.3657262,4752.2,4752.1,0.001]
[1755981571836,8.59075461,4752.2,4752.1,0.001]
[1755981572232,10.69504315,4752.2,4752.1,0.001]
[1755981575645,10.49903218,4752.2,4752.1,0.001]
[1755981575863,10.69476364,4752.2,4752.1,0.001]
[1755981579049,10.69484105,4752.2,4752.1,0.001]
[1755981580528,10.56139313,4752.2,4752.1,0.001]
[1755981582237,11.12275566,4752.2,4752.1,0.001]
[1755981582957,11.27983463,4752.2,4752.1,0.001]
[1755981583275,10.79770132,4752.2,4752.1,0.001]
[1755981583958,11.1270339,4752.2,4752.1,0.001]
[1755981584531,11.87526903,4752.2,4752.1,0.001]
[1755981585432,11.67947017,4752.2,4752.1,0.001]
[1755981585637,11.87547843,4752.2,4752.1,0.001]
[1755981586472,11.54640509,4752.2,4752.1,0.001]
[1755981586768,8.00740509,4752.2,4752.1,0.001]
[1755981586970,11.53940509,4752.2,4752.1,0.001]
[1755981587468,12.80340509,4752.2,4752.1,0.001]
[1755981588066,7.62672218,4752.2,4752.1,0.001]
[1755981588240,10.84942218,4752.2,4752.1,0.7467]
[1755981588438,10.84942218,4752.2,4752.1,0.001]
[1755981588640,11.13782218,4752.2,4752.1,0.001]
[1755981589575,10.84942218,4752.2,4752.1,0.001]
[1755981590374,10.5190896,4752.2,4752.1,0.001]
[1755981591174,10.6180896,4752.2,4752.1,0.001]
[1755981591767,7.0870896,4752.2,4752.1,0.001]
[1755981592077,10.6180896,4752.2,4752.1,0.001]
[1755981592239,6.21051072,4752.2,4752.1,0.782]
[1755981592442,7.63722218,4752.2,4752.1,0.782]
[1755981592660,8.29922218,4752.2,4752.1,0.782]
[1755981593858,8.62853728,4752.2,4752.1,0.782]
[1755981594360,4.43553728,4752.2,4752.1,0.782]
[1755981594564,7.96853728,4752.2,4752.1,0.782]
[1755981595372,7.77261699,4752.2,4752.1,0.782]
[1755981595688,4.4357162,4752.2,4752.1,0.782]
[1755981595878,7.61553802,4752.2,4752.1,0.782]
[1755981596055,4.61553802,4752.2,4752.1,0.782]
[1755981596250,4.61556137,4752.2,4752.1,0.782]
[1755981596563,4.41944179,4752.2,4752.1,0.782]
[1755981597967,4.09012669,4752.2,4752.1,0.782]
[1755981598971,0.55712669,4752.2,4752.1,0.782]
[1755981599176,3.6376,4752.2,4752.1,0.782]
[1755981599380,4.08912669,4752.2,4752.1,0.782]
[1755981600610,0.55712669,4752.2,4752.1,2.88633282]
[1755981600907,3.6376,4752.2,4752.1,0.782]
[1755981601472,4.08924465,4752.2,4752.1,0.782]
[1755981601715,10.14634895,4752.2,4752.1,0.001]
[1755981602013,10.90715404,4752.2,4752.1,0.001]
[1755981602213,0.75326041,4752.2,4752.1,0.3071]
[1755981602368,0.75326041,4752.2,4752.1,2.88633282]
[1755981602369,0.1056,4752.2,4752.1,2.88633282]
[1755981602570,3.541,4752.3,4752.2,2.10428854]
[1755981602767,3.541,4752.3,4752.2,2.41038854]
[1755981603013,3.541,4752.3,4752.2,2.88528854]
[1755981603725,0.002,4752.3,4752.2,2.88528854]
[1755981608588,0.002,4752.3,4752.2,0.781]
[1755981608775,0.002,4752.3,4752.2,1.33010399]
[1755981608983,0.002,4752.3,4752.2,0.781]
[1755981615205,0.002,4752.3,4752.2,2.88528854]
[1755981624619,0.101,4752.3,4752.1,0.001]
[1755981625138,0.2066,4752.3,4752.1,0.001]
[1755981628051,3.7376,4752.3,4752.1,0.001]
[1755981633653,0.45194365,4752.2,4752.1,0.001]
[1755981633852,0.84004365,4752.2,4752.1,0.001]
[1755981634054,3.74304365,4752.2,4752.1,0.001]
[1755981634265,3.93916458,4752.2,4752.1,0.001]
[1755981635761,4.03616458,4752.2,4752.1,0.001]
[1755981636550,3.93916458,4752.2,4752.1,0.001]
[1755981636749,4.03616458,4752.2,4752.1,0.001]
[1755981639267,3.93916458,4752.2,4752.1,0.001]
[1755981641739,7.03274848,4752.2,4752.1,0.001]
[1755981643540,6.83662755,4752.2,4752.1,0.001]
[1755981643878,7.03249108,4752.2,4752.1,0.001]
[1755981645560,4.92820254,4752.2,4752.1,0.001]
[1755981645967,1.63710254,4752.2,4752.1,0.311]
[1755981646145,6.81444743,4752.2,4752.1,0.001]
[1755981646345,7.26639108,4752.2,4752.1,0.001]
[1755981646956,5.16210254,4752.2,4752.1,0.001]
[1755981647574,7.26639108,4752.2,4752.1,0.001]
[1755981647776,5.16210254,4752.2,4752.1,0.001]
[1755981649869,7.26639108,4752.2,4752.1,0.001]
[1755981650575,5.16210254,4752.2,4752.1,0.001]
[1755981650965,7.26639108,4752.2,4752.1,0.001]
[1755981651272,7.03419572,4752.2,4752.1,0.001]
[1755981651474,7.23007185,4752.2,4752.1,0.001]
[1755981652106,5.12578331,4752.2,4752.1,0.001]
[1755981652379,7.23007185,4752.2,4752.1,0.001]
[1755981653351,7.03419572,4752.2,4752.1,0.001]
[1755981653549,7.23018304,4752.2,4752.1,0.001]
[1755981654379,7.79421044,4752.2,4752.1,0.001]
[1755981654883,7.79424644,4752.2,4752.1,0.001]
[1755981655352,8.1235548,4752.2,4752.1,0.001]
[1755981657485,7.55952278,4752.2,4752.1,0.001]
[1755981657887,7.23021442,4752.2,4752.1,0.001]
[1755981660082,7.23030756,4752.2,4752.1,0.001]
[1755981661688,7.55961816,4752.2,4752.1,0.001]
[1755981662380,7.84881816,4752.2,4752.1,0.001]
[1755981662582,7.84900415,4752.2,4752.1,0.001]
[1755981663005,8.60174836,4752.2,4752.1,0.001]
[1755981665918,8.60175426,4752.2,4752.1,0.001]
[1755981667144,1.17342151,4752.2,4752.1,0.7529]
[1755981667330,3.91116726,4752.2,4752.1,0.7529]
[1755981667498,4.36811091,4752.2,4752.1,0.7529]
[1755981667807,7.93293341,4752.2,4752.1,0.7529]
[1755981668129,0.45194365,4752.2,4752.1,2.85723282]
[1755981668331,0.002,4752.3,4752.2,2.10428854]
[1755981668332,0.45394365,4752.3,4752.2,2.10428854]
[1755981668517,0.002,4752.3,4752.2,2.38968854]
[1755981668834,0.002,4752.3,4752.2,2.85618854]
[1755981669132,0.002,4752.3,4752.2,3.40207995]
[1755981670336,0.002,4752.3,4752.2,0.7519]
[1755981670337,3.527,4752.3,4752.2,0.7519]
[1755981670501,6.97847113,4752.3,4752.2,0.7519]
[1755981670913,5.76428854,4752.2,4752.1,0.001]
[1755981671113,6.89383403,4752.2,4752.1,0.001]
[1755981671713,6.60763403,4752.2,4752.1,0.001]
[1755981671918,6.93694528,4752.2,4752.1,0.001]
[1755981672237,6.82847092,4752.2,4752.1,0.001]
[1755981672447,7.78458378,4752.2,4752.1,0.001]
[1755981672833,7.50118378,4752.2,4752.1,0.001]
[1755981673017,7.30526269,4752.2,4752.1,0.001]
[1755981673210,7.50118903,4752.2,4752.1,0.2864]
[1755981673643,7.30526792,4752.2,4752.1,0.2864]
[1755981673846,7.30526792,4752.2,4752.1,0.001]
[1755981676247,7.40426792,4752.2,4752.1,0.001]
[1755981676810,6.83999726,4752.2,4752.1,0.001]
[1755981677210,6.94559726,4752.2,4752.1,0.001]
[1755981677444,7.50985161,4752.2,4752.1,0.001]
[1755981677854,6.94559726,4752.2,4752.1,0.001]
[1755981679457,7.50984304,4752.2,4752.1,0.001]
[1755981679673,7.5098344,4752.2,4752.1,0.001]
[1755981679856,7.3139167,4752.2,4752.1,0.001]
[1755981680046,6.74967092,4752.2,4752.1,0.001]
[1755981680561,6.94558131,4752.2,4752.1,0.001]
[1755981680728,6.74967092,4752.2,4752.1,0.001]
[1755981681132,6.61627009,4752.2,4752.1,0.001]
[1755981682956,6.51727009,4752.2,4752.1,0.001]
[1755981683534,6.51726669,4752.2,4752.1,0.001]
[1755981683879,6.51726676,4752.2,4752.1,0.7418]
[1755981684163,6.84658037,4752.2,4752.1,0.7418]
[1755981684369,7.41081358,4752.2,4752.1,0.7418]
[1755981684865,6.84658037,4752.2,4752.1,0.7418]
[1755981685667,7.41084765,4752.2,4752.1,0.001]
[1755981686762,7.41084765,4752.2,4752.1,0.2996]
[1755981686950,7.41084765,4752.2,4752.1,0.7418]
[1755981687367,7.41084765,4752.2,4752.1,0.2996]
[1755981687869,7.08153404,4752.2,4752.1,0.7418]
[1755981691173,8.70053404,4752.2,4752.1,0.7418]
[1755981691673,8.13916676,4752.2,4752.1,0.001]
[1755981691970,8.46847916,4752.2,4752.1,0.001]
[1755981693487,8.46849273,4752.2,4752.1,0.001]
[1755981693982,8.46849266,4752.2,4752.1,0.001]
[1755981696685,8.46559266,4752.2,4752.1,0.001]
[1755981699891,8.13628026,4752.2,4752.1,0.001]
[1755981700794,8.13628026,4752.2,4752.1,0.4432]
[1755981703303,8.46598735,4752.2,4752.1,0.4432]
[1755981703889,8.4660045,4752.2,4752.1,0.4432]
[1755981706476,8.46600259,4752.2,4752.1,0.4432]
[1755981706918,8.62650972,4752.2,4752.1,0.4432]
[1755981707192,6.6160502,4752.2,4752.1,0.7418]
[1755981707369,9.18289229,4752.2,4752.1,0.7418]
[1755981707768,5.85357826,4752.2,4752.1,0.7418]
[1755981708171,2.53291077,4752.2,4752.1,2.84613282]
[1755981708403,5.78380364,4752.2,4752.1,3.34139559]
[1755981708571,1.81533251,4752.2,4752.1,3.34139559]
[1755981708781,5.33233251,4752.2,4752.1,3.34139559]
[1755981709195,5.136,4752.2,4752.1,3.34139559]
[1755981712886,0.002,4752.3,4752.2,2.10428854]
[1755981713205,3.518,4752.3,4752.2,3.42951695]
[1755981714091,3.518,4752.3,4752.2,1.32522841]
[1755981714590,0.002,4752.3,4752.2,1.32522841]
[1755981714768,3.518,4752.3,4752.2,1.32522841]
[1755981715205,0.002,4752.3,4752.2,1.32522841]
[1755981715401,3.518,4752.3,4752.2,1.32522841]
[1755981716809,3.517,4752.3,4752.2,3.42951695]
[1755981717010,3.517,4752.3,4752.2,1.43082841]
[1755981717500,3.517,4752.3,4752.2,3.53511695]
[1755981718082,3.517,4752.3,4752.2,1.43082841]
[1755981718283,3.517,4752.3,4752.2,3.53511695]
[1755981718284,0.33126698,4752.3,4752.2,3.53511695]
[1755981718699,0.002,4752.3,4752.2,3.53511695]
[1755981726682,0.002,4752.3,4752.2,0.97432841]
[1755981726892,0.002,4752.3,4752.2,0.1056]
[1755981727781,0.002,4752.3,4752.2,2.20988854]
[1755981728181,0.002,4752.3,4752.2,2.97988854]
[1755981734233,0.002,4752.3,4752.2,0.1056]
[1755981734433,0.101,4752.3,4752.2,0.1056]
[1755981734939,0.101,4752.3,4752.2,2.20988854]
[1755981735107,0.002,4752.3,4752.2,2.20988854]
[1755981735431,0.002,4752.3,4752.2,2.68716459]
[1755981735931,0.33124366,4752.3,4752.2,2.68716459]
[1755981736132,0.33124366,4752.3,4752.2,3.14366459]
[1755981737227,0.33124366,4752.3,4752.2,3.45716459]
[1755981741346,0.002,4752.3,4752.2,3.45716459]
[1755981742113,0.002,4752.3,4752.2,3.14366459]
[1755981742721,0.002,4752.3,4752.2,2.68716459]
[1755981743946,0.101,4752.3,4752.1,0.001]
[1755981745416,0.101,4752.3,4752.1,2.10532473]
[1755981747551,0.002,4752.3,4752.1,2.10532473]
[1755981747748,0.33125637,4752.3,4752.1,2.10532473]
[1755981747948,0.002,4752.3,4752.1,0.001]
[1755981749433,0.002,4752.3,4752.1,2.10532537]
[1755981750634,0.002,4752.3,4752.1,0.001]
[1755981750836,2.48868854,4752.2,4752.1,0.001]
[1755981751036,6.70588244,4752.2,4752.1,0.001]
[1755981751756,10.21688244,4752.2,4752.1,0.001]
[1755981752356,3.6561939,4752.2,4752.1,0.001]
[1755981752542,0.5571939,4752.2,4752.1,0.3033]
[1755981752724,0.1056,4752.2,4752.1,0.7599]
[1755981754074,3.84228446,4752.3,4752.1,0.7599]
[1755981754234,6.84228446,4752.3,4752.2,0.4566]
[1755981754435,7.29457644,4752.3,4752.2,0.7589]
[1755981759773,6.96529198,4752.3,4752.2,0.7589]
[1755981759970,6.96529198,4752.3,4752.1,0.001]
[1755981760166,6.514,4752.3,4752.1,0.001]
[1755981760370,6.514,4752.3,4752.1,0.4576]
[1755981761573,6.514,4752.3,4752.2,0.4566]
[1755981761768,6.96538486,4752.3,4752.2,0.4566]
[1755981762674,6.96538486,4752.3,4752.2,0.7589]
[1755981766778,3.96538486,4752.3,4752.2,2.86318854]
[1755981767079,3.514,4752.3,4752.2,1.25585974]
[1755981767277,3.514,4752.3,4752.2,0.7589]
[1755981767976,3.514,4752.3,4752.2,2.86318854]
[1755981769103,3.514,4752.3,4752.2,0.7589]
[1755981769401,3.514,4752.3,4752.2,2.86318854]
[1755981775103,3.513,4752.3,4752.2,2.86318854]
[1755981775666,3.513,4752.3,4752.2,0.7589]
[1755981775885,3.513,4752.3,4752.2,2.86318854]
[1755981776292,0.002,4752.3,4752.2,2.90354932]
[1755981776519,0.33126049,4752.8,4752.7,2.10406716]
[1755981776520,0.002,4752.8,4752.7,2.10406716]
[1755981776817,0.002,4752.8,4752.7,3.2953983]
[1755981786591,0.002,4752.8,4752.7,3.4009983]
[1755981787024,0.002,4752.8,4752.7,2.6304983]
[1755981787215,0.002,4752.8,4752.7,6.1414983]
[1755981787731,0.002,4752.8,4752.7,6.9119983]
[1755981798140,0.2945,4752.8,4752.7,6.1404983]
[1755981798607,0.002,4752.8,4752.7,6.1404983]
[1755981803441,0.002,4752.8,4752.7,6.8659983]
[1755981815599,0.002,4753.3,4753.2,2.10384583]
[1755981815764,0.002,4753.3,4753.2,6.3263327]
[1755981816072,0.002,4753.3,4753.2,6.7591327]
[1755981817255,0.042,4753.8,4753.7,2.10362454]
[1755981817453,0.042,4753.8,4753.7,5.90532454]
[1755981817652,0.042,4753.8,4753.7,6.33812454]
[1755981817957,0.042,4753.8,4753.7,7.34410613]
[1755981818155,0.042,4753.8,4753.7,10.34410613]
[1755981818156,1e-08,4753.8,4753.7,10.34410613]
[1755981818359,1e-08,4753.8,4753.7,6.83510613]
[1755981818570,1e-08,4753.8,4753.7,6.91130613]
[1755981818767,1e-08,4753.8,4753.7,6.61860613]
[1755981819165,1e-08,4753.8,4753.7,7.34410613]
[1755981825703,1e-08,4753.8,4753.7,7.44890613]
[1755981833703,1e-08,4753.8,4753.7,3.50710613]
[1755981833890,0.09900001,4753.8,4753.7,6.72240613]
[1755981834073,1e-08,4753.8,4753.7,6.72240613]
[1755981834601,1e-08,4753.8,4753.7,7.45410613]
[1755981836810,0.30560001,4753.8,4753.7,6.72240613]
[1755981837008,0.30560001,4753.8,4753.7,5.71642454]
[1755981837608,1e-08,4753.8,4753.7,5.71642454]
[1755981843730,1e-08,4753.8,4753.7,6.44812454]
[1755981858940,1e-08,4753.8,4753.7,2.20842454]
[1755981858941,0.09900001,4753.8,4753.7,2.20842454]
[1755981859242,0.09900001,4753.8,4753.7,5.71642454]
[1755981859619,0.09900001,4753.8,4753.7,6.48765686]
[1755981861618,1e-08,4753.8,4753.7,6.48765686]
[1755981862406,0.10090001,4753.8,4753.7,6.48765686]
[1755981863738,1e-08,4753.8,4753.7,6.94505686]
[1755981863908,1e-08,4753.8,4753.7,7.25445686]
[1755981883940,1e-08,4753.8,4753.7,2.97965686]
[1755981883941,0.09900001,4753.8,4753.7,2.97965686]
[1755981884137,0.09900001,4753.8,4753.7,6.48665686]
[1755981885169,1e-08,4753.8,4753.7,6.48665686]
[1755981885753,1e-08,4753.8,4753.7,6.94405686]
[1755981886272,1e-08,4753.8,4753.7,7.25345686]
[1755981896385,1e-08,4753.8,4753.7,7.24155686]
[1755981907657,0.09900001,4753.8,4753.7,2.20842454]
[1755981907963,0.38820001,4753.8,4753.7,2.20842454]
[1755981908155,0.38820001,4753.8,4753.7,5.71442454]
[1755981908772,0.3430749,4754.5,4753.8,2.10356685]
[1755981908972,0.3430749,4754.5,4754.1,2.10343348]
[1755981909260,3.1048,4754.6,4754.1,2.10343348]
[1755981909462,3.1048,4754.6,4753.9,2.10353604]
[1755981909769,3.1048,4754.6,4754.1,2.1034232]
[1755981910961,3.1048,4754.6,4753.7,3.6108]
[1755981911172,3.1048,4754.6,4754.1,2.10343355]
[1755981911572,0.1048,4754.6,4753.9,3.506]
[1755981911786,0.1048,4754.6,4753.9,3.9515]
[1755981912698,0.1048,4754.6,4754.4,2.10327651]
[1755981913866,0.1048,4754.6,4754.5,2.10327058]
[1755981915994,0.1268,4754.8,4754.5,2.10327058]
[1755981916695,0.1268,4754.8,4754.4,2.10330719]
[1755981916998,0.1268,4754.8,4754.5,2.10326255]
[1755981919702,0.1268,4754.8,4754.4,2.10330967]
[1755981920096,0.1268,4754.8,4754.5,2.10325238]
[1755981920614,0.1268,4754.8,4754.4,0.465]
[1755981921002,0.1268,4754.8,4754.3,2.10331936]
[1755981921308,0.1268,4754.8,4754.3,2.56835135]
[1755981921714,0.1268,4754.8,4754.4,2.10328058]
[1755981923003,0.1268,4754.8,4754.5,2.10325803]
[1755981923388,0.1268,4754.8,4754.5,2.56825803]
[1755981923610,0.1268,4754.8,4754.6,2.10322388]
[1755981923809,0.1268,4754.8,4754.6,2.56822388]
[1755981924115,0.1268,4754.8,4754.7,0.465]
[1755981925041,0.1268,4754.8,4754.7,0.3157]
[1755981925203,0.022,4754.8,4754.7,0.7807]
[1755981926807,0.022,4754.8,4754.7,0.465]
[1755981927211,0.022,4754.8,4754.7,0.7807]
[1755981927415,0.022,4754.8,4754.4,0.1048]
[1755981927714,0.022,4754.8,4754.5,0.465]
[1755981928018,0.022,4754.8,4754.6,0.465]
[1755981928903,0.022,4754.8,4754.7,0.465]
[1755981930919,0.022,4754.8,4754.7,2.56818211]
[1755981931287,0.022,4754.8,4754.7,2.88388211]
[1755981931486,0.022,4754.8,4754.7,0.7807]
[1755981939901,0.022,4754.8,4754.5,2.10326905]
[1755981940118,0.022,4754.8,4754.4,0.1048]
[1755981940119,8.86696681,4754.7,4754.4,0.1048]
[1755981940324,3.0,4754.5,4754.4,0.1048]
[1755981940516,3.64901319,4754.5,4754.4,0.1048]
[1755981940722,3.64901319,4754.5,4754.3,0.001]
[1755981940914,0.45257642,4754.4,4754.3,0.001]
[1755981948852,0.45257642,4754.4,4754.3,0.4637]
[1755981949719,0.45257642,4754.4,4754.3,0.7751]
[1755981950133,0.45257642,4754.4,4754.3,0.4637]
[1755981952757,6.95757642,4754.4,4754.3,0.001]
[1755981953060,6.95757642,4754.4,4754.3,0.4637]
[1755981955431,6.95757642,4754.4,4754.3,0.001]
[1755981956546,6.95757642,4754.4,4754.3,0.4637]
[1755981958192,6.95757642,4754.4,4754.3,0.001]
[1755981960288,6.95757642,4754.4,4754.3,0.4637]
[1755981961183,6.95957642,4754.4,4754.3,0.4637]
[1755981964800,9.91923275,4754.4,4754.3,0.001]
[1755981965584,9.91923587,4754.4,4754.3,0.001]
[1755981974483,9.91939592,4754.4,4754.3,0.001]
[1755981975086,9.91940205,4754.4,4754.3,0.001]
[1755981975296,7.81608723,4754.4,4754.3,0.001]
[1755981980125,16.68305404,4754.4,4754.3,0.4648]
[1755981984406,16.68309738,4754.4,4754.3,0.7729]
[1755981984915,16.68310007,4754.4,4754.3,0.7729]
[1755981985704,3.65113326,4754.4,4754.3,0.7729]
[1755981985932,6.95857642,4754.4,4754.3,0.7729]
[1755981999602,0.45457642,4754.4,4754.3,1.06053305]
[1755981999816,0.002,4754.4,4754.3,2.87625906]
[1755982002931,1e-08,4754.4,4754.3,2.87625906]
[1755982004093,1e-08,4754.4,4754.3,6.37925906]
[1755982004298,1e-08,4754.4,4754.3,2.87625906]
[1755982004596,1e-08,4754.4,4754.3,3.73500944]
[1755982009336,1e-08,4754.4,4754.3,3.83980944]
[1755982013827,1e-08,4754.4,4754.3,3.78980944]
[1755982014030,1e-08,4754.4,4754.3,3.48170944]
[1755982014201,1e-08,4754.4,4754.3,7.29670944]
[1755982025319,1e-08,4754.4,4754.3,3.79470944]
[1755982025516,1e-08,4754.4,4754.3,7.29570944]
[1755982026668,1e-08,4754.4,4754.3,7.29670944]
[1755982027163,0.002,4754.9,4754.8,2.10313788]
[1755982027164,1e-08,4754.9,4754.8,2.10313788]
[1755982027360,1e-08,4754.9,4754.8,20.12173893]
[1755982027531,1.617,4756.7,4755.5,2.1028283]
[1755982027855,0.022,4756.8,4755.7,2.52053987]
[1755982028234,0.022,4756.8,4755.7,2.97923987]
[1755982038690,0.022,4756.8,4755.7,5.97923987]
[1755982038895,1e-08,4755.8,4755.7,7.13754669]
[1755982039042,1e-08,4755.8,4755.7,8.75454669]
[1755982050467,1e-08,4755.8,4755.7,17.60925052]
[1755982050673,1e-08,4755.8,4755.7,18.26925052]
[1755982053659,1e-08,4756.3,4756.2,2.10251881]
[1755982053856,1e-08,4756.3,4756.2,18.99820264]
[1755982054071,1e-08,4756.3,4756.2,19.57170264]
[1755982056383,1e-08,4756.3,4756.2,10.71699881]
[1755982057256,1e-08,4756.3,4756.2,11.37699881]
[1755982057453,0.022,4756.8,4756.2,11.37699881]
[1755982057454,1e-08,4756.8,4756.7,2.10229781]
[1755982057659,1e-08,4756.8,4756.7,12.2250115]
[1755982057895,1e-08,4756.8,4756.7,12.6937115]
[1755982063279,1e-08,4757.3,4757.2,5.76207685]
[1755982063479,1e-08,4757.3,4757.2,9.72877685]
[1755982063694,1e-08,4757.3,4757.2,9.83357685]
[1755982063999,1e-08,4757.3,4757.2,11.02714901]
[1755982067691,1e-08,4757.3,4757.2,11.33834901]
[1755982067894,1e-08,4757.3,4757.2,11.02714901]
[1755982070314,1e-08,4757.3,4757.2,11.33834901]
[1755982071791,1e-08,4757.3,4757.2,10.55844901]
[1755982072104,1e-08,4757.3,4757.2,11.01924901]
[1755982072578,1e-08,4757.3,4757.2,11.33484901]
[1755982076502,1e-08,4757.3,4757.2,11.01924901]
[1755982077109,1e-08,4757.3,4757.2,10.55844901]
[1755982077311,1e-08,4757.3,4757.2,11.01924901]
[1755982078719,1e-08,4757.3,4757.2,9.89844901]
[1755982078920,1e-08,4757.3,4757.2,9.89744901]
[1755982079791,1e-08,4757.3,4757.2,10.35824901]
[1755982079990,1e-08,4757.3,4757.2,10.67384901]
[1755982080684,1e-08,4757.3,4757.2,9.89744901]
[1755982081515,1e-08,4757.3,4757.2,10.67384901]
[1755982085430,1e-08,4757.3,4757.2,7.17684901]
[1755982085619,1e-08,4757.3,4757.2,10.67384901]
[1755982094234,1e-08,4757.3,4757.2,20.18405223]
[1755982097826,1e-08,4757.3,4757.2,21.80005223]
[1755982100952,1e-08,4757.3,4757.2,12.94984901]
[1755982109889,1e-08,4757.3,4757.2,9.63424901]
[1755982110971,1e-08,4757.3,4757.2,9.17344901]
[1755982111171,1e-08,4757.3,4757.2,5.01644901]
[1755982111354,1e-08,4757.3,4757.2,8.51244901]
[1755982129703,1e-08,4757.3,4757.2,8.97604901]
[1755982130320,1e-08,4757.3,4757.2,9.27914901]
[1755982132407,1e-08,4757.3,4757.2,8.51144901]
[1755982132574,1e-08,4757.3,4757.2,7.31787685]
[1755982139629,1e-08,4757.3,4757.2,7.78147685]
[1755982140631,1e-08,4757.3,4757.2,7.31787685]
[1755982142333,1e-08,4757.3,4757.2,7.62097685]
[1755982142632,1e-08,4757.3,4757.2,9.10334901]
[1755982143010,1e-08,4757.3,4757.2,8.80024901]
[1755982143807,1e-08,4757.3,4757.2,9.10334901]
[1755982145701,1e-08,4757.3,4757.2,8.80024901]
[1755982147202,1e-08,4757.3,4757.2,8.33664901]
[1755982147401,1e-08,4757.3,4757.2,1.7208]
[1755982147635,1e-08,4757.3,4757.2,3.5998]
[1755982147938,1e-08,4757.3,4757.2,0.1048]
[1755982148152,1e-08,4757.3,4757.1,0.001]
[1755982149139,1e-08,4757.3,4757.1,2.10311658]
[1755982149304,1e-08,4757.3,4757.2,2.10207685]
[1755982149504,1e-08,4757.3,4757.1,2.10311885]
[1755982151843,1e-08,4757.3,4757.1,0.001]
[1755982152215,1e-08,4757.3,4757.1,3.495]
[1755982155410,1e-08,4757.3,4757.1,0.001]
[1755982164165,1e-08,4757.3,4757.1,0.4443]
[1755982164659,1e-08,4757.3,4757.1,0.001]
[1755982164831,1e-08,4757.3,4757.2,0.4433]
[1755982165366,1e-08,4757.3,4757.1,0.001]
[1755982165730,1e-08,4757.3,4757.1,0.4443]
[1755982167047,1e-08,4757.3,4757.1,0.001]
[1755982167254,1e-08,4757.3,4757.2,0.4433]
[1755982168635,1e-08,4757.3,4757.2,0.7459]
[1755982172574,1e-08,4757.3,4757.2,0.4433]
[1755982172870,1e-08,4757.3,4757.1,0.001]
[1755982175486,1e-08,4757.3,4757.1,0.4443]
[1755982176050,1e-08,4757.3,4757.1,0.001]
[1755982176283,1e-08,4757.3,4757.2,0.4433]
[1755982178598,1e-08,4757.3,4757.2,0.7459]
[1755982178744,1e-08,4757.3,4757.2,2.84797685]
[1755982178950,1e-08,4757.3,4757.2,2.95277685]
[1755982181388,1e-08,4757.3,4757.2,3.80776886]
[1755982189577,1e-08,4757.3,4757.2,4.46776886]
[1755982192202,1e-08,4757.3,4757.2,7.96176886]
[1755982204512,1e-08,4757.3,4757.2,6.55586886]
[1755982205337,1e-08,4757.3,4757.2,7.02146886]
[1755982206398,1e-08,4757.3,4757.2,7.33166886]
[1755982215945,1e-08,4757.3,4757.2,8.94766886]
[1755982220043,1e-08,4757.3,4757.2,8.17186886]
[1755982220268,1e-08,4757.3,4757.2,8.63516886]
[1755982220487,1e-08,4757.3,4757.2,8.92456886]
[1755982225501,1e-08,4757.3,4757.2,8.17186886]
[1755982227176,1e-08,4757.3,4757.2,8.63516886]
[1755982229593,1e-08,4757.3,4757.2,8.92456886]
[1755982240897,1e-08,4757.3,4757.2,4.67786886]
[1755982241093,1e-08,4757.3,4757.2,8.16886886]
[1755982243205,1e-08,4757.3,4757.2,7.31387685]
[1755982250985,1e-08,4757.3,4757.2,7.75107685]
[1755982252918,1e-08,4757.3,4757.2,8.04457685]
[1755982258540,0.002,4758.3,4757.2,8.04457685]